[Event "Balkan Youth Online-ch 2020"]
[Site "Online"]
[Date "2020.10.31"]
[Round "1.78"]
[White "Shuqja, Klean"]
[Black "Mitkova, Victoria-Elizabeth"]
[Result "1-0"]
[ECO "A03"]
[WhiteElo "1838"]
[BlackElo "1105"]
[Annotator "NA RC"]
[PlyCount "57"]
[EventDate "2020.10.31"]
[EventType "swiss"]
[SourceTitle "playchess.com"]
[Source "ChessBase"]
[SourceQuality "1"]
[TimeControl "5400+30"]

1. b3 {[%emt 1:05:20]} d5 {[%emt 1:05:28]} 2. Bb2 {[%emt 0:00:25]} c5 {[%emt 0:00:31]} 3. e3 {[%emt 0:00:26]} a6 {[%emt 0:00:27]} 4. f4 {[%emt 0:00:38]} Nc6 {[%emt 0:00:29]} 5. Nf3 {[%emt 0:00:23]} Nf6 {[%emt 0:00:34]} 6. Be2 {[%emt 0:00:35]} e6 {[%emt 0:00:47]} 7. Ne5 {[%emt 0:00:42]} Nxe5 {[%emt 0:00:55]} 8. Bxe5 {[%emt 0:00:26]} Be7 {[%emt 0:00:28]} 9. O-O {[%emt 0:00:26]} O-O {[%emt 0:00:32]} 10. d3 {[%emt 0:00:57]} Bd7 {[%emt 0:00:47]} 11. Nd2 {[%emt 0:00:36]} b5 {[%emt 0:00:47]} 12. Bf3 {[%emt 0:01:45]} Rc8 {[%emt 0:01:04]} 13. c4 {[%emt 0:00:53]} dxc4 {[%emt 0:01:07]} 14. dxc4 {[%emt 0:00:33]} Bc6 $14 {[%emt 0:00:54]} 15. Bxc6 {[%emt 0:02:23]} Rxc6 {[%emt 0:00:34]} 16. Qf3 {[%emt 0:00:58]} Rc8 {[%emt 0:00:48]} 17. Rfd1 {[%emt 0:00:42]} Qb6 {[%emt 0:01:04]} 18. Rac1 {[%emt 0:02:16]} b4 {[%emt 0:00:48]} 19. Ne4 {[%emt 0:01:47]} Nxe4 {[%emt 0:00:58]} 20. Qxe4 {[%emt 0:00:23]} a5 {[%emt 0:01:17]} 21. Rd7 {[%emt 0:01:00]} Rfe8 {[%emt 0:00:56]} 22. Rcd1 {[%emt 0:00:54]} f6 {[%emt 0:02:20]} 23. Bd6 {[%emt 0:04:46]} Bxd6 {[%emt 0:01:08]} 24. R1xd6 {[%emt 0:00:34]} Qb8 {[%emt 0:00:42]} 25. Rxg7+ {[%emt 0:02:45]} Kxg7 {[%emt 0:01:04]} 26. Rd7+ {[%emt 0:00:26]} Kf8 {[%emt 0:00:29]} 27. Qxh7 {[%emt 0:00:25]} Re7 {[%emt 0:01:03]} 28. Qxe7+ {[%emt 0:00:25]} Kg8 {[%emt 0:00:32]} 29. Qg7# {[%emt 0:00:22]} 1-0

[Event "Balkan Youth Online-ch 2020"]
[Site "Online"]
[Date "2020.10.31"]
[Round "1.79"]
[White "Paroglou, Marianna"]
[Black "Mandic, Anastasija"]
[Result "1-0"]
[ECO "C54"]
[WhiteElo "1436"]
[BlackElo "1130"]
[Annotator "NA RC"]
[PlyCount "61"]
[EventDate "2020.10.31"]
[EventType "swiss"]
[SourceTitle "playchess.com"]
[Source "ChessBase"]
[SourceQuality "1"]
[TimeControl "5400+30"]

1. e4 {[%emt 1:05:20]} e5 {[%emt 1:05:23]} 2. Nf3 {[%emt 0:00:25]} Nc6 {[%emt 0:00:23]} 3. Bc4 {[%emt 0:00:22]} Bc5 {[%emt 0:00:22]} 4. c3 {[%emt 0:00:47]} Nf6 {[%emt 0:00:23]} 5. d3 {[%emt 0:00:23]} d6 {[%emt 0:00:55]} 6. O-O {[%emt 0:00:40]} h6 {[%emt 0:00:34]} 7. Nbd2 {[%emt 0:00:27]} O-O {[%emt 0:00:26]} 8. Re1 {[%emt 0:00:25]} Bg4 {[%emt 0:00:31]} 9. Nf1 {[%emt 0:01:29]} Re8 {[%emt 0:01:25]} 10. h3 {[%emt 0:02:16]} Bh5 {[%emt 0:00:38]} 11. Ng3 {[%emt 0:01:02]} Bg6 {[%emt 0:01:34]} 12. Nh4 {[%emt 0:00:39]} Bh7 {[%emt 0:01:45]} 13. Nhf5 {[%emt 0:01:05]} Ne7 {[%emt 0:01:57]} 14. Qf3 {[%emt 0:04:05]} Qd7 {[%emt 0:02:06]} 15. Nxh6+ {[%emt 0:02:47]} Kf8 {[%emt 0:07:47]} 16. Nxf7 {[%emt 0:03:21]} Bg8 {[%emt 0:01:33]} 17. Qxf6 {[%emt 0:08:44]} Nc6 {[%emt 0:02:31]} 18. Nxe5+ {[%emt 0:02:39]} gxf6 {[%emt 0:00:47]} 19. Nxd7+ {[%emt 0:00:51]} Ke7 {[%emt 0:00:42]} 20. Nxc5 {[%emt 0:00:28]} Bxc4 {[%emt 0:00:49]} 21. dxc4 {[%emt 0:00:26]} dxc5 {[%emt 0:00:28]} 22. Bf4 {[%emt 0:00:26]} Rac8 {[%emt 0:00:44]} 23. Rad1 {[%emt 0:00:48]} Na5 {[%emt 0:00:44]} 24. Nf5+ {[%emt 0:00:35]} Kf8 {[%emt 0:01:07]} 25. b3 {[%emt 0:00:30]} b6 {[%emt 0:01:36]} 26. Rd7 {[%emt 0:00:31]} Nb7 {[%emt 0:01:51]} 27. Bh6+ {[%emt 0:00:42]} Kg8 {[%emt 0:00:29]} 28. Ne7+ {[%emt 0:00:35]} Kh7 {[%emt 0:00:54]} 29. Nxc8+ {[%emt 0:00:27]} Kxh6 {[%emt 0:00:22]} 30. Ne7 {[%emt 0:00:28]} Nd6 {[%emt 0:00:36]} 31. Rxc7 {[%emt 0:00:36]} 1-0

[Event "Balkan Youth Online-ch 2020"]
[Site "Online"]
[Date "2020.10.31"]
[Round "1.80"]
[White "Jovanovic, Anja"]
[Black "Lusheska, Elena"]
[Result "1-0"]
[ECO "B13"]
[WhiteElo "1778"]
[BlackElo "1086"]
[Annotator "NA RC"]
[PlyCount "37"]
[EventDate "2020.10.31"]
[EventType "swiss"]
[SourceTitle "playchess.com"]
[Source "ChessBase"]
[SourceQuality "1"]
[TimeControl "5400+30"]

1. e4 {[%emt 1:05:20]} c6 {[%emt 1:05:26]} 2. d4 {[%emt 0:00:23]} d5 {[%emt 0:00:25]} 3. exd5 {[%emt 0:00:22]} cxd5 {[%emt 0:00:22]} 4. Bd3 {[%emt 0:00:22]} e6 {[%emt 0:00:25]} 5. Nf3 {[%emt 0:00:23]} Nf6 {[%emt 0:00:23]} 6. O-O {[%emt 0:00:32]} Bd6 {[%emt 0:00:29]} 7. c3 {[%emt 0:00:26]} O-O {[%emt 0:00:57]} 8. Bg5 {[%emt 0:00:26]} Be7 {[%emt 0:00:29]} 9. Nbd2 {[%emt 0:00:40]} Nc6 {[%emt 0:00:30]} 10. Rc1 {[%emt 0:00:42]} Bd7 {[%emt 0:02:31]} 11. Ne5 {[%emt 0:03:35]} Rc8 {[%emt 0:04:20]} 12. Bb1 {[%emt 0:02:37]} g6 {[%emt 0:06:16]} 13. Bh6 {[%emt 0:01:24]} Re8 {[%emt 0:00:36]} 14. Ndf3 {[%emt 0:03:19]} Bf8 {[%emt 0:00:57]} 15. Qd2 {[%emt 0:01:18]} Na5 {[%emt 0:03:27]} 16. Bxf8 {[%emt 0:00:45]} Rxf8 {[%emt 0:00:29]} 17. Qh6 {[%emt 0:00:25]} Re8 {[%emt 0:03:37]} 18. Ng5 {[%emt 0:00:44]} Bb5 {[%emt 0:01:45]} 19. Ngxf7 {[%emt 0:02:13]} 1-0

[Event "Balkan Youth Online-ch 2020"]
[Site "Online"]
[Date "2020.10.31"]
[Round "1.86"]
[White "Tsampouli, Vasiliki"]
[Black "Elma, Muge"]
[Result "0-1"]
[ECO "B52"]
[WhiteElo "1549"]
[BlackElo "1689"]
[Annotator "NA RC"]
[PlyCount "154"]
[EventDate "2020.10.31"]
[EventType "swiss"]
[SourceTitle "playchess.com"]
[Source "ChessBase"]
[SourceQuality "1"]
[TimeControl "5400+30"]

1. e4 {[%emt 1:09:38]} c5 {[%emt 1:05:26]} 2. Nf3 {[%emt 0:00:23]} d6 {[%emt 0:00:26]} 3. Bb5+ {[%emt 0:00:24]} Bd7 {[%emt 0:00:23]} 4. Bxd7+ {[%emt 0:00:22]} Nxd7 {[%emt 0:00:21]} 5. d4 {[%emt 0:00:29]} cxd4 {[%emt 0:01:27]} 6. Qxd4 {[%emt 0:00:33]} Ngf6 {[%emt 0:00:52]} 7. Nc3 {[%emt 0:00:57]} g6 {[%emt 0:01:57]} 8. O-O {[%emt 0:00:50]} Bg7 {[%emt 0:00:37]} 9. Bg5 {[%emt 0:02:00]} O-O {[%emt 0:01:46]} 10. Qd2 {[%emt 0:00:49]} Nc5 {[%emt 0:03:09]} 11. Rfe1 {[%emt 0:01:40]} Qb6 {[%emt 0:03:53]} 12. Nd5 {[%emt 0:03:20]} Nxd5 {[%emt 0:03:05]} 13. Qxd5 {[%emt 0:00:48]} Qc7 {[%emt 0:03:43]} 14. c3 {[%emt 0:02:11]} h6 {[%emt 0:01:00]} 15. Bf4 {[%emt 0:02:01]} Ne6 {[%emt 0:00:48]} 16. Be3 {[%emt 0:01:48]} Rfd8 {[%emt 0:01:02]} 17. Rad1 {[%emt 0:01:15]} a6 {[%emt 0:01:16]} 18. h3 {[%emt 0:02:16]} b5 {[%emt 0:00:46]} 19. Nd4 {[%emt 0:00:46]} Nc5 {[%emt 0:01:44]} 20. Qc6 {[%emt 0:02:00]} Rdc8 {[%emt 0:00:44]} 21. Qxc7 {[%emt 0:00:31]} Rxc7 {[%emt 0:00:21]} 22. f3 {[%emt 0:00:27]} Na4 {[%emt 0:00:32]} 23. Rd2 {[%emt 0:00:46]} Rac8 {[%emt 0:00:22]} 24. a3 {[%emt 0:00:39]} h5 {[%emt 0:00:34]} 25. Red1 {[%emt 0:00:28]} Bf6 {[%emt 0:01:01]} 26. Kf2 {[%emt 0:01:00]} Rb7 {[%emt 0:01:00]} 27. Nb3 {[%emt 0:01:12]} Kg7 {[%emt 0:01:11]} 28. Na5 {[%emt 0:00:30]} Rbc7 {[%emt 0:00:24]} 29. Nb3 {[%emt 0:00:23]} Bh4+ {[%emt 0:00:51]} 30. g3 {[%emt 0:00:23]} Bf6 {[%emt 0:00:22]} 31. f4 {[%emt 0:00:38]} Kf8 {[%emt 0:01:03]} 32. Kf3 {[%emt 0:00:32]} Rc6 {[%emt 0:00:55]} 33. Nd4 {[%emt 0:00:36]} R6c7 {[%emt 0:00:39]} 34. g4 {[%emt 0:00:40]} Nc5 {[%emt 0:00:42]} 35. Rg2 {[%emt 0:01:31]} hxg4+ {[%emt 0:00:33]} 36. hxg4 {[%emt 0:00:23]} e6 {[%emt 0:00:42]} 37. Ne2 {[%emt 0:00:42]} Ke7 {[%emt 0:00:27]} 38. g5 {[%emt 0:00:30]} Bg7 {[%emt 0:00:24]} 39. Rh2 {[%emt 0:00:41]} Rh8 {[%emt 0:00:29]} 40. Rxh8 {[%emt 0:00:33]} Bxh8 {[%emt 0:00:22]} 41. Bd4 {[%emt 0:01:06]} Bxd4 {[%emt 0:00:29]} 42. Nxd4 {[%emt 0:00:22]} Na4 {[%emt 0:00:24]} 43. Rd2 {[%emt 0:00:25]} Nb6 {[%emt 0:00:22]} 44. Nb3 {[%emt 0:00:38]} Nc4 {[%emt 0:00:28]} 45. Re2 {[%emt 0:00:23]} Rc8 {[%emt 0:00:39]} 46. Nd4 {[%emt 0:00:28]} e5 {[%emt 0:00:35]} 47. Nb3 {[%emt 0:00:41]} Rh8 {[%emt 0:00:31]} 48. f5 {[%emt 0:00:42]} Rh4 {[%emt 0:01:24]} 49. f6+ {[%emt 0:00:52]} Ke6 {[%emt 0:00:24]} 50. Nc1 {[%emt 0:00:35]} a5 {[%emt 0:00:53]} 51. Kg3 {[%emt 0:00:25]} Rh5 {[%emt 0:00:55]} 52. Kg4 {[%emt 0:00:23]} a4 {[%emt 0:00:39]} 53. Nd3 {[%emt 0:00:25]} Rh1 {[%emt 0:00:23]} 54. Nb4 {[%emt 0:00:50]} Rg1+ {[%emt 0:00:31]} 55. Kh4 {[%emt 0:00:24]} Kd7 {[%emt 0:01:04]} 56. Nd3 {[%emt 0:00:38]} Rd1 {[%emt 0:00:30]} 57. Nb4 {[%emt 0:00:26]} Rh1+ {[%emt 0:00:32]} 58. Kg4 {[%emt 0:00:23]} Rg1+ {[%emt 0:00:21]} 59. Kh4 {[%emt 0:00:25]} Rd1 {[%emt 0:00:31]} 60. Kg4 {[%emt 0:01:04]} Nd2 {[%emt 0:00:32]} 61. Nd5 {[%emt 0:00:47]} Rg1+ {[%emt 0:00:27]} 62. Kh3 {[%emt 0:00:38]} Nf3 {[%emt 0:00:34]} 63. Nb6+ {[%emt 0:00:38]} Kc6 {[%emt 0:00:25]} 64. Nd5 {[%emt 0:00:29]} Rxg5 {[%emt 0:00:30]} 65. Nb4+ {[%emt 0:00:27]} Kd7 {[%emt 0:00:25]} 66. Re3 {[%emt 0:00:23]} Rh5+ {[%emt 0:00:43]} 67. Kg3 {[%emt 0:00:25]} Ng5 {[%emt 0:00:25]} 68. Kg4 {[%emt 0:00:24]} Ne6 {[%emt 0:00:27]} 69. Nd5 {[%emt 0:00:27]} Rh2 {[%emt 0:00:31]} 70. Nb6+ {[%emt 0:00:38]} Kc6 {[%emt 0:00:23]} 71. Nd5 {[%emt 0:00:30]} Rxb2 {[%emt 0:00:28]} 72. Ne7+ {[%emt 0:00:25]} Kd7 {[%emt 0:00:22]} 73. Rd3 {[%emt 0:00:33]} Rg2+ {[%emt 0:00:30]} 74. Kf3 {[%emt 0:00:26]} Nf4 {[%emt 0:00:48]} 75. Rd1 {[%emt 0:00:43]} g5 {[%emt 0:00:31]} 76. Nf5 {[%emt 0:00:27]} g4+ {[%emt 0:00:21]} 77. Ke3 {[%emt 0:00:24]} Re2# {[%emt 0:00:24]} 0-1

[Event "Balkan Youth Online-ch 2020"]
[Site "Online"]
[Date "2020.10.31"]
[Round "1.87"]
[White "Popovic, Mateja"]
[Black "Ivanovic, Tara"]
[Result "1-0"]
[ECO "D60"]
[WhiteElo "1592"]
[BlackElo "1283"]
[Annotator "NA RC"]
[PlyCount "108"]
[EventDate "2020.10.31"]
[EventType "swiss"]
[SourceTitle "playchess.com"]
[Source "ChessBase"]
[SourceQuality "1"]
[TimeControl "5400+30"]

1. d4 {[%emt 1:05:20]} d5 {[%emt 1:05:23]} 2. c4 {[%emt 0:00:24]} e6 {[%emt 0:00:22]} 3. Nc3 {[%emt 0:00:22]} Nf6 {[%emt 0:00:23]} 4. Bg5 {[%emt 0:00:22]} Be7 {[%emt 0:00:22]} 5. e3 {[%emt 0:00:23]} O-O {[%emt 0:00:23]} 6. Nf3 {[%emt 0:00:22]} Nbd7 {[%emt 0:00:23]} 7. cxd5 {[%emt 0:00:27]} Nxd5 {[%emt 0:00:25]} 8. Bxe7 {[%emt 0:00:24]} Qxe7 {[%emt 0:00:22]} 9. Nxd5 {[%emt 0:00:25]} exd5 {[%emt 0:00:22]} 10. Bd3 {[%emt 0:00:23]} Nf6 {[%emt 0:00:24]} 11. Qc2 {[%emt 0:00:28]} h6 {[%emt 0:02:41]} 12. Nd2 {[%emt 0:01:49]} c6 {[%emt 0:01:34]} 13. h3 {[%emt 0:00:32]} Re8 {[%emt 0:01:21]} 14. O-O-O {[%emt 0:00:32]} Ne4 {[%emt 0:00:49]} 15. Nxe4 {[%emt 0:01:05]} dxe4 {[%emt 0:00:24]} 16. Bc4 {[%emt 0:00:23]} Be6 {[%emt 0:00:51]} 17. g4 {[%emt 0:00:37]} Bxc4 {[%emt 0:01:44]} 18. Qxc4 {[%emt 0:00:25]} Qe6 {[%emt 0:00:24]} 19. Qa4 {[%emt 0:01:07]} Qd5 {[%emt 0:03:17]} 20. h4 {[%emt 0:01:24]} c5 {[%emt 0:02:05]} 21. Qb5 {[%emt 0:01:15]} a6 {[%emt 0:01:46]} 22. Qa5 {[%emt 0:00:32]} Rac8 {[%emt 0:01:01]} 23. Kb1 {[%emt 0:00:28]} Qc4 {[%emt 0:01:46]} 24. Rd2 {[%emt 0:01:44]} cxd4 {[%emt 0:00:38]} 25. exd4 {[%emt 0:00:33]} Qb5 {[%emt 0:01:10]} 26. Qxb5 {[%emt 0:00:35]} axb5 {[%emt 0:00:24]} 27. Re1 {[%emt 0:00:25]} Rcd8 {[%emt 0:02:11]} 28. Re3 {[%emt 0:00:41]} Rd5 {[%emt 0:00:31]} 29. f3 {[%emt 0:00:43]} Red8 {[%emt 0:00:42]} 30. Rxe4 {[%emt 0:00:25]} Kf8 {[%emt 0:00:26]} 31. Kc2 {[%emt 0:00:28]} f5 {[%emt 0:00:31]} 32. Rf4 {[%emt 0:00:44]} g5 {[%emt 0:01:09]} 33. hxg5 {[%emt 0:00:32]} hxg5 {[%emt 0:00:22]} 34. Rxf5+ {[%emt 0:00:21]} Rxf5 {[%emt 0:00:21]} 35. gxf5 {[%emt 0:00:24]} Kf7 {[%emt 0:00:22]} 36. Kd3 {[%emt 0:01:01]} Kf6 {[%emt 0:00:41]} 37. Rc2 {[%emt 0:00:28]} Rd5 {[%emt 0:00:35]} 38. Ke4 {[%emt 0:00:37]} Rxf5 {[%emt 0:00:23]} 39. Rc7 {[%emt 0:00:23]} Ke6 {[%emt 0:00:43]} 40. Rxb7 {[%emt 0:00:30]} Rf4+ {[%emt 0:00:23]} 41. Ke3 {[%emt 0:00:23]} Kd5 {[%emt 0:00:31]} 42. Rxb5+ {[%emt 0:00:25]} Kc4 {[%emt 0:00:22]} 43. Rc5+ {[%emt 0:00:25]} Kb4 {[%emt 0:00:26]} 44. Rxg5 {[%emt 0:00:26]} Rf8 {[%emt 0:00:22]} 45. Re5 {[%emt 0:00:27]} Ra8 {[%emt 0:00:31]} 46. a3+ {[%emt 0:00:28]} Kb3 {[%emt 0:00:26]} 47. Rb5+ {[%emt 0:00:23]} Kc4 {[%emt 0:00:21]} 48. Rb4+ {[%emt 0:00:23]} Kd5 {[%emt 0:00:23]} 49. Kd3 {[%emt 0:00:24]} Rf8 {[%emt 0:00:23]} 50. Rb5+ {[%emt 0:00:35]} Kc6 {[%emt 0:00:24]} 51. Rc5+ {[%emt 0:00:22]} Kd6 {[%emt 0:00:24]} 52. Ke4 {[%emt 0:00:22]} Re8+ {[%emt 0:00:22]} 53. Re5 {[%emt 0:00:23]} Rc8 {[%emt 0:00:22]} 54. f4 {[%emt 0:00:27]} Rc3 {[%emt 0:00:22]} 1-0

[Event "Balkan Youth Online-ch 2020"]
[Site "Online"]
[Date "2020.10.31"]
[Round "1.92"]
[White "Kalyva, Kyriaki"]
[Black "Ergazaki, Eirini"]
[Result "1-0"]
[ECO "D00"]
[WhiteElo "1823"]
[BlackElo "1577"]
[Annotator "NA RC"]
[PlyCount "23"]
[EventDate "2020.10.31"]
[EventType "swiss"]
[SourceTitle "playchess.com"]
[Source "ChessBase"]
[SourceQuality "1"]
[TimeControl "5400+30"]

1. d4 {[%emt 1:05:20]} d5 {[%emt 1:05:23]} 2. Nc3 {[%emt 0:00:26]} Nf6 {[%emt 0:00:25]} 3. Bf4 {[%emt 0:00:22]} c5 {[%emt 0:00:36]} 4. e3 {[%emt 0:00:42]} Nc6 {[%emt 0:00:51]} 5. Nb5 {[%emt 0:01:51]} e5 {[%emt 0:01:59]} 6. dxe5 {[%emt 0:00:34]} Ne4 {[%emt 0:01:34]} 7. e6 {[%emt 0:02:20]} Bxe6 {[%emt 0:03:30]} 8. Nc7+ {[%emt 0:01:23]} Ke7 {[%emt 0:00:38]} 9. Nxa8 {[%emt 0:00:41]} Qa5+ {[%emt 0:04:16]} 10. c3 {[%emt 0:02:45]} Nxc3 {[%emt 0:01:45]} 11. Qd2 {[%emt 0:01:30]} Nb4 {[%emt 0:02:11]} 12. bxc3 {[%emt 0:01:05]} 1-0

[Event "Balkan Youth Online-ch 2020"]
[Site "Online"]
[Date "2020.10.31"]
[Round "1.93"]
[White "Zeycan, Alara"]
[Black "Mihailidou, Magdalini"]
[Result "0-1"]
[ECO "D00"]
[WhiteElo "1230"]
[BlackElo "1796"]
[Annotator "NA RC"]
[PlyCount "28"]
[EventDate "2020.10.31"]
[EventType "swiss"]
[SourceTitle "playchess.com"]
[Source "ChessBase"]
[SourceQuality "1"]
[TimeControl "5400+30"]

1. d4 {[%emt 1:05:20]} d5 {[%emt 1:05:23]} 2. e3 {[%emt 0:00:31]} Nf6 {[%emt 0:00:23]} 3. f4 {[%emt 0:00:25]} e6 {[%emt 0:00:25]} 4. c3 {[%emt 0:00:23]} Ne4 {[%emt 0:00:34]} 5. Bd3 {[%emt 0:00:24]} Qh4+ {[%emt 0:00:24]} 6. g3 {[%emt 0:01:09]} Nxg3 {[%emt 0:00:25]} 7. hxg3 {[%emt 0:00:29]} Qxh1 {[%emt 0:00:25]} 8. Kf1 {[%emt 0:00:26]} e5 {[%emt 0:00:35]} 9. g4 {[%emt 0:01:39]} e4 {[%emt 0:01:18]} 10. Be2 {[%emt 0:00:38]} h5 {[%emt 0:00:31]} 11. Kf2 {[%emt 0:01:26]} hxg4 {[%emt 0:00:34]} 12. Bxg4 {[%emt 0:00:32]} Rh2+ {[%emt 0:00:28]} 13. Kf1 {[%emt 0:00:45]} Qg2+ {[%emt 0:00:23]} 14. Ke1 {[%emt 0:00:31]} Qxg1# {[%emt 0:00:27]} 0-1

[Event "Balkan Youth Online-ch 2020"]
[Site "Online"]
[Date "2020.10.31"]
[Round "1.94"]
[White "Lupascu, Diana-Elena"]
[Black "Bojovic, Neda"]
[Result "1-0"]
[ECO "D11"]
[WhiteElo "1668"]
[BlackElo "1316"]
[Annotator "NA RC"]
[PlyCount "45"]
[EventDate "2020.10.31"]
[EventType "swiss"]
[SourceTitle "playchess.com"]
[Source "ChessBase"]
[SourceQuality "1"]
[TimeControl "5400+30"]

1. d4 {[%emt 1:05:20]} d5 {[%emt 1:05:24]} 2. Nf3 {[%emt 0:00:23]} Nf6 {[%emt 0:00:23]} 3. g3 {[%emt 0:00:24]} c6 {[%emt 0:00:24]} 4. Bg2 {[%emt 0:00:24]} Bf5 {[%emt 0:00:31]} 5. O-O {[%emt 0:00:24]} e6 {[%emt 0:00:36]} 6. c4 {[%emt 0:00:26]} h6 {[%emt 0:00:54]} 7. Nc3 {[%emt 0:00:32]} Bd6 {[%emt 0:00:26]} 8. Nd2 {[%emt 0:00:47]} O-O {[%emt 0:01:00]} 9. e4 {[%emt 0:00:26]} dxe4 {[%emt 0:00:41]} 10. Ndxe4 {[%emt 0:00:24]} Bc7 {[%emt 0:00:37]} 11. Qb3 {[%emt 0:02:24]} Nxe4 {[%emt 0:03:27]} 12. Nxe4 {[%emt 0:01:58]} Qc8 {[%emt 0:01:12]} 13. Be3 {[%emt 0:04:52]} Nd7 {[%emt 0:10:02]} 14. Rac1 {[%emt 0:04:07]} Nb6 {[%emt 0:03:24]} 15. Nc5 {[%emt 0:02:53]} Bd6 {[%emt 0:06:45]} 16. Nxb7 {[%emt 0:04:19]} Qxb7 {[%emt 0:00:54]} 17. c5 {[%emt 0:00:31]} Rac8 {[%emt 0:01:17]} 18. Rc3 {[%emt 0:05:11]} Qb8 {[%emt 0:00:50]} 19. cxb6 {[%emt 0:00:49]} axb6 {[%emt 0:00:28]} 20. Rfc1 {[%emt 0:00:33]} Qb7 {[%emt 0:00:33]} 21. Rxc6 {[%emt 0:01:22]} Rxc6 {[%emt 0:00:27]} 22. Rxc6 {[%emt 0:00:27]} Qd7 {[%emt 0:00:24]} 23. Qxb6 {[%emt 0:00:38]} 1-0

[Event "Balkan Youth Online-ch 2020"]
[Site "Online"]
[Date "2020.10.31"]
[Round "2.2"]
[White "Sava, Robert-Gabriel"]
[Black "Petrovski, Nikola"]
[Result "1-0"]
[ECO "B30"]
[WhiteElo "1716"]
[BlackElo "1031"]
[Annotator "NA RC"]
[PlyCount "63"]
[EventDate "2020.10.31"]
[EventType "swiss"]
[SourceTitle "playchess.com"]
[Source "ChessBase"]
[SourceQuality "1"]
[TimeControl "5400+30"]

1. e4 {[%emt 1:05:20]} c5 {[%emt 1:05:26]} 2. Nf3 {[%emt 0:00:27]} Nc6 {[%emt 0:00:27]} 3. Bb5 {[%emt 0:00:24]} Nd4 {[%emt 0:00:29]} 4. Nxd4 {[%emt 0:00:25]} cxd4 {[%emt 0:00:24]} 5. O-O {[%emt 0:00:24]} Nf6 {[%emt 0:00:35]} 6. d3 {[%emt 0:00:23]} e5 {[%emt 0:00:29]} 7. f4 {[%emt 0:00:29]} Bd6 {[%emt 0:00:28]} 8. Nd2 {[%emt 0:01:16]} O-O {[%emt 0:00:39]} 9. Nc4 {[%emt 0:00:23]} Bb8 {[%emt 0:00:33]} 10. Nxe5 {[%emt 0:01:16]} d6 {[%emt 0:00:54]} 11. Nf3 {[%emt 0:00:31]} Bg4 {[%emt 0:00:53]} 12. h3 {[%emt 0:00:30]} Bxf3 {[%emt 0:00:43]} 13. Qxf3 {[%emt 0:00:24]} Qa5 {[%emt 0:00:26]} 14. Bc4 {[%emt 0:00:29]} Bc7 {[%emt 0:00:40]} 15. Qf2 {[%emt 0:00:42]} Qb6 {[%emt 0:01:51]} 16. Bb3 {[%emt 0:00:45]} Rac8 {[%emt 0:05:18]} 17. Bd2 {[%emt 0:00:40]} Rfe8 {[%emt 0:01:10]} 18. g4 {[%emt 0:00:59]} h6 {[%emt 0:00:41]} 19. g5 {[%emt 0:00:40]} Nd7 {[%emt 0:00:44]} 20. g6 {[%emt 0:00:28]} Rf8 {[%emt 0:00:36]} 21. gxf7+ {[%emt 0:00:25]} Kh7 {[%emt 0:00:30]} 22. Kh1 {[%emt 0:00:46]} d5 {[%emt 0:00:40]} 23. Bxd5 {[%emt 0:01:00]} Nf6 {[%emt 0:00:37]} 24. Bb3 {[%emt 0:00:23]} Nh5 {[%emt 0:00:31]} 25. Qf3 {[%emt 0:00:48]} Qg6 {[%emt 0:01:10]} 26. Rg1 {[%emt 0:00:32]} Qc6 {[%emt 0:00:58]} 27. Qxh5 {[%emt 0:00:30]} a5 {[%emt 0:00:29]} 28. Bd5 {[%emt 0:00:30]} Qd6 {[%emt 0:00:27]} 29. Rg2 {[%emt 0:01:04]} Qf6 {[%emt 0:00:33]} 30. e5 {[%emt 0:00:34]} Qe7 {[%emt 0:00:26]} 31. Qg6+ {[%emt 0:00:24]} Kh8 {[%emt 0:00:31]} 32. Qxg7# {[%emt 0:00:24]} 1-0

[Event "Balkan Youth Online-ch 2020"]
[Site "Online"]
[Date "2020.10.31"]
[Round "2.3"]
[White "Alimema, Alvin"]
[Black "Sevig, Mert Can"]
[Result "0-1"]
[ECO "B23"]
[WhiteElo "1110"]
[BlackElo "1472"]
[Annotator "NA RC"]
[PlyCount "70"]
[EventDate "2020.10.31"]
[EventType "swiss"]
[SourceTitle "playchess.com"]
[Source "ChessBase"]
[SourceQuality "1"]
[TimeControl "5400+30"]

1. e4 {[%emt 1:05:20]} c5 {[%emt 1:05:23]} 2. f4 {[%emt 0:00:23]} d6 {[%emt 0:00:25]} 3. Nf3 {[%emt 0:00:24]} Nc6 {[%emt 0:00:23]} 4. Bb5 {[%emt 0:00:25]} Bd7 {[%emt 0:00:22]} 5. Bxc6 {[%emt 0:00:22]} Bxc6 {[%emt 0:00:22]} 6. Nc3 {[%emt 0:00:23]} e6 {[%emt 0:00:27]} 7. d3 {[%emt 0:00:31]} Ne7 {[%emt 0:00:30]} 8. Bd2 {[%emt 0:00:55]} g6 {[%emt 0:00:25]} 9. O-O {[%emt 0:00:27]} Bg7 {[%emt 0:00:25]} 10. Qe1 {[%emt 0:00:24]} Qb6 {[%emt 0:05:04]} 11. Nd1 {[%emt 0:01:20]} d5 {[%emt 0:04:16]} 12. Bc3 {[%emt 0:01:37]} c4+ {[%emt 0:02:05]} 13. Kh1 {[%emt 0:00:46]} d4 {[%emt 0:05:21]} 14. Ba5 {[%emt 0:01:58]} Qa6 {[%emt 0:02:37]} 15. dxc4 {[%emt 0:02:17]} Qxc4 {[%emt 0:02:07]} 16. c3 {[%emt 0:06:55]} Bxe4 {[%emt 0:03:50]} 17. Nd2 {[%emt 0:05:31]} Bxg2+ {[%emt 0:01:06]} 18. Kxg2 {[%emt 0:00:42]} Qd5+ {[%emt 0:00:22]} 19. Ne4 {[%emt 0:01:20]} Qxa5 {[%emt 0:01:11]} 20. Nd6+ {[%emt 0:01:28]} Kf8 {[%emt 0:00:24]} 21. Ne4 {[%emt 0:00:50]} Nf5 {[%emt 0:01:20]} 22. cxd4 {[%emt 0:02:37]} Qxe1 {[%emt 0:00:29]} 23. Rxe1 {[%emt 0:00:22]} Bxd4 {[%emt 0:00:21]} 24. Kf3 {[%emt 0:01:00]} Rc8 {[%emt 0:00:38]} 25. Ndc3 {[%emt 0:01:17]} Bxc3 {[%emt 0:00:40]} 26. bxc3 {[%emt 0:00:25]} Ke7 {[%emt 0:00:27]} 27. Rad1 {[%emt 0:00:31]} Rhd8 {[%emt 0:00:33]} 28. h3 {[%emt 0:01:01]} b5 {[%emt 0:01:24]} 29. a3 {[%emt 0:01:42]} Nd6 {[%emt 0:00:56]} 30. Nxd6 {[%emt 0:01:14]} Rxc3+ {[%emt 0:00:25]} 31. Re3 {[%emt 0:00:28]} Rxe3+ {[%emt 0:00:27]} 32. Kxe3 {[%emt 0:00:24]} Rxd6 {[%emt 0:00:22]} 33. Rc1 {[%emt 0:00:21]} Ra6 {[%emt 0:00:29]} 34. Rc5 {[%emt 0:00:31]} Rxa3+ {[%emt 0:00:22]} 35. Kd4 {[%emt 0:00:24]} b4 {[%emt 0:00:28]} 0-1